[Event "55th Biel Festival MTO 2022"]
[Site "Biel"]
[Date "2022.07.15"]
[Round "2.14"]
[White "Song, Julien"]
[Black "Huschenbeth Niclas"]
[Result "1/2-1/2"]
[ECO "E04"]
[WhiteElo "2391"]
[BlackElo "2610"]
[Annotator "ChessBase"]
[PlyCount "104"]
[EventDate "2022.07.13"]
[EventType "swiss"]
[EventCountry "SUI"]
[SourceTitle "playchess.com"]
[Source "ChessBase"]
[SourceQuality "1"]
[TimeControl "40/5400+30:1800+30"]

1. d4 {[%emt 0:01:03]} Nf6 {[%emt 0:00:05]} 2. c4 {[%emt 0:00:05]} e6 {[%emt 0:00:05]} 3. Nf3 {[%emt 0:00:03]} d5 {[%emt 0:00:05]} 4. g3 {[%emt 0:00:03]} dxc4 {[%emt 0:00:13]} 5. Bg2 {[%emt 0:00:18]} c6 {[%emt 0:00:07]} 6. a4 {[%emt 0:01:25]} Bb4+ {[%emt 0:00:18]} 7. Bd2 {[%emt 0:00:30]} a5 {[%emt 0:00:09]} 8. Qc2 {[%emt 0:00:36]} O-O {[%emt 0:00:42]} 9. Bxb4 {[%emt 0:03:30]} axb4 {[%emt 0:00:05]} 10. Qxc4 {[%emt 0:00:14]} Qe7 {[%emt 0:00:06]} 11. Qc2 {[%emt 0:14:17]} b5 {[%emt 0:02:05]} 12. a5 {[%emt 0:02:28]} Qc7 {[%emt 0:08:29]} 13. O-O {[%emt 0:04:02]} Rxa5 {[%emt 0:00:05]} 14. Nbd2 {[%emt 0:02:12]} Rxa1 {[%emt 0:05:33]} 15. Rxa1 {[%emt 0:00:16]} Nbd7 {[%emt 0:01:08]} 16. Ne1 {[%emt 0:18:05]} c5 {[%emt 0:08:45]} 17. dxc5 {[%emt 0:08:46]} Qxc5 {[%emt 0:00:18]} 18. Qxc5 {[%emt 0:00:31]} Nxc5 {[%emt 0:00:05]} 19. Rc1 {[%emt 0:00:06]} Na4 {[%emt 0:13:00]} 20. Nd3 {[%emt 0:00:38]} Rd8 {[%emt 0:08:58]} 21. Rc2 {[%emt 0:16:38]} b3 {[%emt 0:24:27]} 22. Nxb3 {[%emt 0:02:34]} e5 {[%emt 0:00:28]} 23. Na5 {[%emt 0:08:37]} Bf5 {[%emt 0:05:02]} 24. Nc6 {[%emt 0:06:03]} Re8 {[%emt 0:00:46]} 25. b3 {[%emt 0:03:28]} e4 {[%emt 0:01:30]} 26. Nde5 {[%emt 0:00:36]} e3 {[%emt 0:07:51]} 27. Rc1 {[%emt 0:00:07]} exf2+ {[%emt 0:01:11]} 28. Kxf2 {[%emt 0:00:09]} Nb6 {[%emt 0:00:45]} 29. Rc5 {[%emt 0:00:35]} b4 {[%emt 0:09:01]} 30. Rb5 {[%emt 0:01:17]} Nbd7 {[%emt 0:00:04]} 31. Nxd7 {[%emt 0:02:13]} Ng4+ {[%emt 0:02:03]} 32. Kg1 {[%emt 0:00:57]} Bxd7 {[%emt 0:00:03]} 33. Bf3 {[%emt 0:01:48]} h5 {[%emt 0:01:07]} 34. h3 {[%emt 0:02:34]} Nf6 {[%emt 0:00:06]} 35. Kf2 {[%emt 0:00:40]} Ne4+ {[%emt 0:00:49]} 36. Bxe4 {[%emt 0:00:05]} Rxe4 {[%emt 0:00:03]} 37. Rb8+ {[%emt 0:00:10]} Kh7 {[%emt 0:00:05]} 38. Nxb4 {[%emt 0:00:14]} Bxh3 {[%emt 0:00:07]} 39. Nd5 {[%emt 0:01:05]} Bg4 {[%emt 0:02:33]} 40. Ne3 {[%emt 0:00:44]} Bd7 {[%emt 0:01:14]} 41. Rb7 {[%emt 0:06:19]} Be6 {[%emt 0:02:51]} 42. b4 {[%emt 0:04:13]} g5 {[%emt 0:00:49]} 43. Kf3 {[%emt 0:03:12]} Rd4 {[%emt 0:01:06]} 44. b5 {[%emt 0:05:25]} Rb4 {[%emt 0:04:29]} 45. Kf2 {[%emt 0:02:04]} Kg7 {[%emt 0:14:39]} 46. Nc2 {[%emt 0:02:54]} Rc4 {[%emt 0:01:08]} 47. Ne1 {[%emt 0:00:52]} Rc1 {[%emt 0:04:53]} 48. Nf3 {[%emt 0:00:37]} Kf6 {[%emt 0:00:14]} 49. Rb6 {[%emt 0:02:06]} Rc4 {[%emt 0:01:23]} 50. Rc6 {[%emt 0:03:20]} Rb4 {[%emt 0:00:05]} 51. Rc5 {[%emt 0:00:12]} g4 {[%emt 0:03:17]} 52. Nh4 {[%emt 0:00:14]} Bd7 {[%emt 0:00:34]} 1/2-1/2

[Event "55th Biel Festival MTO 2022"]
[Site "Biel"]
[Date "2022.07.15"]
[Round "2.15"]
[White "Ganguly Surya Shekhar"]
[Black "Haimovich, Tal"]
[Result "1/2-1/2"]
[ECO "C54"]
[WhiteElo "2608"]
[BlackElo "2372"]
[Annotator "ChessBase"]
[PlyCount "75"]
[EventDate "2022.07.13"]
[EventType "swiss"]
[EventCountry "SUI"]
[SourceTitle "playchess.com"]
[Source "ChessBase"]
[SourceQuality "1"]
[TimeControl "40/5400+30:1800+30"]

1. e4 {[%emt 0:01:02]} e5 {[%emt 0:00:09]} 2. Nf3 {[%emt 0:00:08]} Nc6 {[%emt 0:00:05]} 3. Bc4 {[%emt 0:00:08]} Nf6 {[%emt 0:00:09]} 4. d3 {[%emt 0:00:05]} Bc5 {[%emt 0:00:40]} 5. O-O {[%emt 0:00:23]} d6 {[%emt 0:01:52]} 6. c3 {[%emt 0:00:07]} a5 {[%emt 0:02:09]} 7. Re1 {[%emt 0:00:35]} Ba7 {[%emt 0:01:12]} 8. Bb3 {[%emt 0:12:27]} h6 {[%emt 0:03:48]} 9. Na3 {[%emt 0:10:39]} O-O {[%emt 0:04:09]} 10. h3 {[%emt 0:00:11]} Be6 {[%emt 0:04:22]} 11. Ba4 {[%emt 0:01:56]} Ne7 {[%emt 0:02:28]} 12. d4 {[%emt 0:00:58]} Ng6 {[%emt 0:00:25]} 13. Be3 {[%emt 0:05:47]} c6 {[%emt 0:14:09]} 14. Bc2 {[%emt 0:00:57]} b5 {[%emt 0:17:51]} 15. Bd3 {[%emt 0:08:52]} b4 {[%emt 0:00:52]} 16. Nc2 {[%emt 0:00:47]} bxc3 {[%emt 0:01:57]} 17. bxc3 {[%emt 0:00:06]} Nh5 {[%emt 0:00:41]} 18. Bf1 {[%emt 0:15:40]} Nhf4 {[%emt 0:01:49]} 19. Kh2 {[%emt 0:02:29]} Qc8 {[%emt 0:13:23]} 20. Qd2 {[%emt 0:01:42]} Bb8 {[%emt 0:03:07]} 21. dxe5 {[%emt 0:07:48]} dxe5 {[%emt 0:00:11]} 22. Bc5 {[%emt 0:00:37]} Rd8 {[%emt 0:01:39]} 23. Qe3 {[%emt 0:00:06]} Bc7 {[%emt 0:04:13]} 24. Na3 {[%emt 0:04:14]} Rb8 {[%emt 0:01:29]} 25. Nd2 {[%emt 0:01:44]} Bd6 {[%emt 0:09:23]} 26. Bxd6 {[%emt 0:00:55]} Rxd6 {[%emt 0:00:02]} 27. Ndc4 {[%emt 0:00:29]} Rd8 {[%emt 0:02:51]} 28. Red1 {[%emt 0:00:13]} Qc7 {[%emt 0:00:43]} 29. g3 {[%emt 0:06:25]} Nh5 {[%emt 0:00:07]} 30. Qc5 {[%emt 0:03:02]} Nf6 {[%emt 0:00:43]} 31. f3 {[%emt 0:02:08]} Rxd1 {[%emt 0:01:36]} 32. Rxd1 {[%emt 0:00:02]} Nd7 {[%emt 0:00:22]} 33. Qf2 {[%emt 0:00:52]} Ngf8 {[%emt 0:00:46]} 34. Nd6 {[%emt 0:02:57]} Nb6 {[%emt 0:01:07]} 35. Qc5 {[%emt 0:04:10]} Nbd7 {[%emt 0:00:26]} 36. Qf2 {[%emt 0:00:52]} Nb6 {[%emt 0:00:05]} 37. Qc5 {[%emt 0:02:44]} Nbd7 {[%emt 0:00:20]} 38. Qf2 {[%emt 0:00:20]} 1/2-1/2

[Event "55th Biel Festival MTO 2022"]
[Site "Biel"]
[Date "2022.07.15"]
[Round "2.16"]
[White "Ajay Krishna, S."]
[Black "Erdos Viktor"]
[Result "1/2-1/2"]
[ECO "D00"]
[WhiteElo "2372"]
[BlackElo "2586"]
[Annotator "ChessBase"]
[PlyCount "83"]
[EventDate "2022.07.13"]
[EventType "swiss"]
[EventCountry "SUI"]
[SourceTitle "playchess.com"]
[Source "ChessBase"]
[SourceQuality "1"]
[TimeControl "40/5400+30:1800+30"]

1. d4 {[%emt 0:00:25]} Nf6 {[%emt 0:04:32]} 2. Bf4 {[%emt 0:00:13]} g6 {[%emt 0:15:58]} 3. Nc3 {[%emt 0:00:16]} d5 {[%emt 0:00:06]} 4. Nf3 {[%emt 0:00:32]} Bg7 {[%emt 0:00:29]} 5. Nb5 {[%emt 0:01:01]} Na6 {[%emt 0:01:16]} 6. e3 {[%emt 0:00:18]} Bg4 {[%emt 0:05:52]} 7. Nc3 {[%emt 0:17:44]} Nb4 {[%emt 0:10:44]} 8. Be2 {[%emt 0:04:29]} O-O {[%emt 0:08:32]} 9. a3 {[%emt 0:05:31]} Nc6 {[%emt 0:00:10]} 10. h3 {[%emt 0:00:25]} Bxf3 {[%emt 0:00:49]} 11. Bxf3 {[%emt 0:00:07]} Re8 {[%emt 0:01:27]} 12. O-O {[%emt 0:03:24]} Qd7 {[%emt 0:01:40]} 13. Rb1 {[%emt 0:25:23]} Rad8 {[%emt 0:07:18]} 14. Bg5 {[%emt 0:04:13]} e6 {[%emt 0:00:15]} 15. b4 {[%emt 0:02:08]} h6 {[%emt 0:02:31]} 16. Bh4 {[%emt 0:00:49]} Ne7 {[%emt 0:00:15]} 17. Bg3 {[%emt 0:02:19]} Nf5 {[%emt 0:02:30]} 18. Bh2 {[%emt 0:00:41]} Nd6 {[%emt 0:07:13]} 19. b5 {[%emt 0:02:33]} Qe7 {[%emt 0:07:16]} 20. a4 {[%emt 0:03:45]} Rc8 {[%emt 0:00:13]} 21. Qd3 {[%emt 0:05:30]} Red8 {[%emt 0:00:27]} 22. a5 {[%emt 0:02:49]} Nfe8 {[%emt 0:10:09]} 23. e4 {[%emt 0:05:15]} c6 {[%emt 0:02:03]} 24. bxc6 {[%emt 0:02:16]} bxc6 {[%emt 0:00:03]} 25. exd5 {[%emt 0:04:13]} cxd5 {[%emt 0:00:17]} 26. a6 {[%emt 0:01:05]} Nc4 {[%emt 0:02:13]} 27. Na4 {[%emt 0:00:40]} Ned6 {[%emt 0:03:06]} 28. c3 {[%emt 0:02:07]} Rb8 {[%emt 0:04:48]} 29. Rfe1 {[%emt 0:01:45]} Qc7 {[%emt 0:02:06]} 30. Nc5 {[%emt 0:00:36]} Qc6 {[%emt 0:00:31]} 31. Nb7 {[%emt 0:02:24]} Rdc8 {[%emt 0:00:24]} 32. Rb4 {[%emt 0:00:55]} Bf8 {[%emt 0:00:21]} 33. Reb1 {[%emt 0:00:36]} Qe8 {[%emt 0:00:52]} 34. Bxd6 {[%emt 0:00:27]} Nxd6 {[%emt 0:00:05]} 35. Nxd6 {[%emt 0:00:31]} Bxd6 {[%emt 0:00:06]} 36. Rb7 {[%emt 0:00:06]} Qc6 {[%emt 0:01:02]} 37. Bg4 {[%emt 0:00:32]} Rxb7 {[%emt 0:00:47]} 38. axb7 {[%emt 0:00:21]} Re8 {[%emt 0:00:31]} 39. Qb5 {[%emt 0:00:55]} Qxb5 {[%emt 0:00:25]} 40. Rxb5 {[%emt 0:00:05]} Rb8 {[%emt 0:00:31]} 41. Be2 {[%emt 0:30:24]} Kf8 {[%emt 0:03:38]} 42. c4 {[%emt 0:00:00]} 1/2-1/2

[Event "55th Biel Festival MTO 2022"]
[Site "Biel"]
[Date "2022.07.15"]
[Round "2.17"]
[White "Mendonca Leon Luke"]
[Black "Unuk, Laura"]
[Result "1/2-1/2"]
[ECO "D37"]
[WhiteElo "2567"]
[BlackElo "2340"]
[Annotator "ChessBase"]
[PlyCount "150"]
[EventDate "2022.07.13"]
[EventType "swiss"]
[EventCountry "SUI"]
[SourceTitle "playchess.com"]
[Source "ChessBase"]
[SourceQuality "1"]
[TimeControl "40/5400+30:1800+30"]

1. d4 {[%emt 0:00:51]} Nf6 {[%emt 0:00:20]} 2. c4 {[%emt 0:01:30]} e6 {[%emt 0:00:12]} 3. Nf3 {[%emt 0:00:21]} d5 {[%emt 0:01:04]} 4. Nc3 {[%emt 0:00:05]} Be7 {[%emt 0:00:53]} 5. Bf4 {[%emt 0:00:22]} O-O {[%emt 0:00:33]} 6. e3 {[%emt 0:00:17]} b6 {[%emt 0:00:53]} 7. Rc1 {[%emt 0:01:50]} c5 {[%emt 0:11:40]} 8. Be2 {[%emt 0:07:13]} Bb7 {[%emt 0:06:09]} 9. cxd5 {[%emt 0:01:36]} Nxd5 {[%emt 0:03:19]} 10. Nxd5 {[%emt 0:00:06]} Bxd5 {[%emt 0:03:59]} 11. O-O {[%emt 0:04:22]} Nc6 {[%emt 0:21:49]} 12. Qa4 {[%emt 0:09:37]} Nb4 {[%emt 0:14:15]} 13. Rfd1 {[%emt 0:19:41]} Bc6 {[%emt 0:04:49]} 14. Qa3 {[%emt 0:21:06]} c4 {[%emt 0:15:02]} 15. Ne5 {[%emt 0:08:21]} Be4 {[%emt 0:00:07]} 16. Qa4 {[%emt 0:19:11]} a6 {[%emt 0:06:28]} 17. Qd7 {[%emt 0:00:41]} b5 {[%emt 0:01:04]} 18. a3 {[%emt 0:00:45]} Nd5 {[%emt 0:01:32]} 19. Bg3 {[%emt 0:01:15]} Nb6 {[%emt 0:00:19]} 20. Qxd8 {[%emt 0:00:08]} Rfxd8 {[%emt 0:00:12]} 21. Bf3 {[%emt 0:01:03]} Bxf3 {[%emt 0:00:22]} 22. Nxf3 {[%emt 0:00:11]} Rac8 {[%emt 0:00:31]} 23. Rc2 {[%emt 0:00:46]} a5 {[%emt 0:01:46]} 24. Nd2 {[%emt 0:00:38]} Na4 {[%emt 0:01:16]} 25. Ra1 {[%emt 0:00:31]} Nxb2 {[%emt 0:00:25]} 26. Rxb2 {[%emt 0:00:27]} c3 {[%emt 0:00:03]} 27. Rc2 {[%emt 0:00:35]} cxd2 {[%emt 0:00:06]} 28. Rxd2 {[%emt 0:00:06]} Bxa3 {[%emt 0:00:05]} 29. Rdd1 {[%emt 0:00:52]} b4 {[%emt 0:01:15]} 30. h3 {[%emt 0:00:31]} f6 {[%emt 0:01:13]} 31. e4 {[%emt 0:00:18]} Kf7 {[%emt 0:00:22]} 32. d5 {[%emt 0:00:36]} Ke7 {[%emt 0:00:09]} 33. Kh2 {[%emt 0:00:34]} Rc2 {[%emt 0:00:17]} 34. Rd3 {[%emt 0:00:31]} e5 {[%emt 0:01:51]} 35. f4 {[%emt 0:00:26]} exf4 {[%emt 0:00:59]} 36. Bxf4 {[%emt 0:00:01]} Re2 {[%emt 0:00:34]} 37. e5 {[%emt 0:00:32]} a4 {[%emt 0:01:49]} 38. exf6+ {[%emt 0:01:01]} gxf6 {[%emt 0:00:11]} 39. Bc7 {[%emt 0:00:32]} Rg8 {[%emt 0:00:11]} 40. Bg3 {[%emt 0:00:23]} Rc8 {[%emt 0:00:29]} 41. d6+ {[%emt 0:18:31]} Kd7 {[%emt 0:03:24]} 42. Rf1 {[%emt 0:02:21]} Bb2 {[%emt 0:07:34]} 43. Rf5 {[%emt 0:06:14]} Rc3 {[%emt 0:07:09]} 44. Rd1 {[%emt 0:00:20]} Rcc2 {[%emt 0:01:31]} 45. Ra5 {[%emt 0:02:06]} Rxg2+ {[%emt 0:02:16]} 46. Kh1 {[%emt 0:00:30]} Rcd2 {[%emt 0:06:56]} 47. Rxd2 {[%emt 0:00:17]} Rxd2 {[%emt 0:00:03]} 48. Rxa4 {[%emt 0:00:42]} Bc3 {[%emt 0:01:26]} 49. Ra7+ {[%emt 0:00:44]} Kc6 {[%emt 0:03:41]} 50. Rc7+ {[%emt 0:02:17]} Kb6 {[%emt 0:00:30]} 51. Rc4 {[%emt 0:01:31]} Kb5 {[%emt 0:01:00]} 52. Rc7 {[%emt 0:00:29]} Be5 {[%emt 0:01:43]} 53. Bxe5 {[%emt 0:00:26]} fxe5 {[%emt 0:00:03]} 54. Rb7+ {[%emt 0:00:32]} Kc4 {[%emt 0:00:17]} 55. d7 {[%emt 0:00:26]} Kc3 {[%emt 0:01:16]} 56. Kg1 {[%emt 0:00:25]} b3 {[%emt 0:00:05]} 57. Rc7+ {[%emt 0:00:21]} Kb2 {[%emt 0:00:10]} 58. Kf1 {[%emt 0:00:29]} e4 {[%emt 0:01:14]} 59. Ke1 {[%emt 0:00:27]} e3 {[%emt 0:00:09]} 60. Ra7 {[%emt 0:00:52]} Kc2 {[%emt 0:00:55]} 61. Rc7+ {[%emt 0:00:05]} Kb1 {[%emt 0:00:06]} 62. Rb7 {[%emt 0:00:59]} Kb2 {[%emt 0:00:38]} 63. Rc7 {[%emt 0:00:22]} h5 {[%emt 0:00:33]} 64. Rb7 {[%emt 0:00:37]} Kc2 {[%emt 0:00:38]} 65. Rc7+ {[%emt 0:00:02]} Kb1 {[%emt 0:00:07]} 66. Rb7 {[%emt 0:00:54]} b2 {[%emt 0:00:26]} 67. Rc7 {[%emt 0:00:36]} h4 {[%emt 0:00:19]} 68. Rb7 {[%emt 0:00:29]} Kc1 {[%emt 0:00:38]} 69. Rc7+ {[%emt 0:00:06]} Kb1 {[%emt 0:00:11]} 70. Rb7 {[%emt 0:00:01]} Ka2 {[%emt 0:01:23]} 71. Ra7+ {[%emt 0:00:00]} Kb3 {[%emt 0:00:06]} 72. Rb7+ {[%emt 0:00:04]} Kc3 {[%emt 0:00:39]} 73. Rc7+ {[%emt 0:00:09]} Kb3 {[%emt 0:01:08]} 74. Rb7+ {[%emt 0:00:01]} Kc2 {[%emt 0:00:10]} 75. Rc7+ {[%emt 0:00:02]} Kb1 {[%emt 0:00:04]} 1/2-1/2

[Event "55th Biel Festival MTO 2022"]
[Site "Biel"]
[Date "2022.07.15"]
[Round "2.18"]
[White "Papadiamandis, Elliot"]
[Black "Azarov Sergei"]
[Result "1/2-1/2"]
[ECO "C45"]
[WhiteElo "2369"]
[BlackElo "2566"]
[Annotator "ChessBase"]
[PlyCount "59"]
[EventDate "2022.07.13"]
[EventType "swiss"]
[EventCountry "SUI"]
[SourceTitle "playchess.com"]
[Source "ChessBase"]
[SourceQuality "1"]
[TimeControl "40/5400+30:1800+30"]

1. e4 {[%emt 0:02:30]} e5 {[%emt 0:00:11]} 2. Nf3 {[%emt 0:00:21]} Nc6 {[%emt 0:00:08]} 3. d4 {[%emt 0:00:18]} exd4 {[%emt 0:00:27]} 4. Nxd4 {[%emt 0:00:08]} Nf6 {[%emt 0:00:29]} 5. Nxc6 {[%emt 0:00:10]} bxc6 {[%emt 0:00:12]} 6. e5 {[%emt 0:00:06]} Qe7 {[%emt 0:00:26]} 7. Qe2 {[%emt 0:00:07]} Nd5 {[%emt 0:00:25]} 8. g3 {[%emt 0:00:10]} g6 {[%emt 0:02:43]} 9. c4 {[%emt 0:01:04]} Nb6 {[%emt 0:01:18]} 10. b3 {[%emt 0:00:08]} Bg7 {[%emt 0:01:46]} 11. f4 {[%emt 0:00:12]} f6 {[%emt 0:11:09]} 12. Ba3 {[%emt 0:04:32]} d6 {[%emt 0:07:59]} 13. Bg2 {[%emt 0:00:23]} fxe5 {[%emt 0:12:59]} 14. Bxc6+ {[%emt 0:18:10]} Bd7 {[%emt 0:02:07]} 15. Bxa8 {[%emt 0:05:36]} exf4 {[%emt 0:00:18]} 16. Qxe7+ {[%emt 0:01:07]} Kxe7 {[%emt 0:00:05]} 17. Bf3 {[%emt 0:00:22]} fxg3 {[%emt 0:07:37]} 18. c5 {[%emt 0:03:03]} dxc5 {[%emt 0:05:07]} 19. Bxc5+ {[%emt 0:01:21]} Kd8 {[%emt 0:00:09]} 20. hxg3 {[%emt 0:02:12]} Bxa1 {[%emt 0:00:07]} 21. Kf2 {[%emt 0:02:00]} h5 {[%emt 0:05:11]} 22. Nd2 {[%emt 0:12:37]} Bg7 {[%emt 0:03:06]} 23. Nc4 {[%emt 0:07:21]} Bf6 {[%emt 0:16:47]} 24. Na5 {[%emt 0:07:44]} h4 {[%emt 0:01:37]} 25. Nc6+ {[%emt 0:08:12]} Bxc6 {[%emt 0:01:41]} 26. Bxc6 {[%emt 0:00:03]} hxg3+ {[%emt 0:00:53]} 27. Kxg3 {[%emt 0:00:08]} Rxh1 {[%emt 0:00:45]} 28. Bxh1 {[%emt 0:00:09]} Be7 {[%emt 0:03:00]} 29. Bxb6 {[%emt 0:00:42]} axb6 {[%emt 0:00:17]} 30. a4 {[%emt 0:00:44]} 1/2-1/2

[Event "55th Biel Festival MTO 2022"]
[Site "Biel"]
[Date "2022.07.15"]
[Round "2.19"]
[White "Herrera Reyes, Jose Antonio"]
[Black "Iniyan P"]
[Result "0-1"]
[ECO "B23"]
[WhiteElo "2345"]
[BlackElo "2533"]
[Annotator "ChessBase"]
[PlyCount "82"]
[EventDate "2022.07.13"]
[EventType "swiss"]
[EventCountry "SUI"]
[SourceTitle "playchess.com"]
[Source "ChessBase"]
[SourceQuality "1"]
[TimeControl "40/5400+30:1800+30"]

1. e4 {[%emt 0:00:06]} c5 {[%emt 0:03:38]} 2. Nc3 {[%emt 0:01:54]} a6 {[%emt 0:00:06]} 3. g3 {[%emt 0:01:51]} b5 {[%emt 0:00:06]} 4. Bg2 {[%emt 0:00:05]} Bb7 {[%emt 0:00:08]} 5. Nge2 {[%emt 0:00:36]} b4 {[%emt 0:03:45]} 6. Nd5 {[%emt 0:10:04]} e6 {[%emt 0:01:26]} 7. Ne3 {[%emt 0:00:07]} Nf6 {[%emt 0:12:25]} 8. e5 {[%emt 0:11:30]} Bxg2 {[%emt 0:00:16]} 9. Nxg2 {[%emt 0:00:02]} Ng4 {[%emt 0:04:46]} 10. d4 {[%emt 0:02:30]} cxd4 {[%emt 0:00:30]} 11. Qxd4 {[%emt 0:04:22]} h5 {[%emt 0:03:17]} 12. Qe4 {[%emt 0:19:38]} Nc6 {[%emt 0:00:08]} 13. b3 {[%emt 0:00:22]} Ngxe5 {[%emt 0:07:33]} 14. Bb2 {[%emt 0:02:43]} d5 {[%emt 0:00:08]} 15. Qe3 {[%emt 0:00:38]} Ng4 {[%emt 0:00:10]} 16. Qd2 {[%emt 0:02:37]} Bc5 {[%emt 0:01:19]} 17. f3 {[%emt 0:01:32]} Nge5 {[%emt 0:02:32]} 18. O-O-O {[%emt 0:00:11]} Nxf3 {[%emt 0:05:18]} 19. Qf4 {[%emt 0:02:17]} Ng5 {[%emt 0:00:41]} 20. Rhf1 {[%emt 0:12:59]} f6 {[%emt 0:01:50]} 21. Kb1 {[%emt 0:01:07]} Qe7 {[%emt 0:06:00]} 22. Rfe1 {[%emt 0:05:53]} Ne4 {[%emt 0:00:57]} 23. Qf1 {[%emt 0:02:23]} Bf2 {[%emt 0:00:47]} 24. Nef4 {[%emt 0:02:31]} Bxe1 {[%emt 0:00:08]} 25. Ng6 {[%emt 0:01:19]} Qc5 {[%emt 0:01:58]} 26. Nxe1 {[%emt 0:00:18]} Rh6 {[%emt 0:01:17]} 27. Nf4 {[%emt 0:00:58]} Qf2 {[%emt 0:00:20]} 28. Qh1 {[%emt 0:01:37]} Kf7 {[%emt 0:01:13]} 29. Ned3 {[%emt 0:01:43]} Qa7 {[%emt 0:00:09]} 30. Qf3 {[%emt 0:02:07]} Nd4 {[%emt 0:00:11]} 31. Qf1 {[%emt 0:05:29]} Nb5 {[%emt 0:04:20]} 32. Ka1 {[%emt 0:00:36]} Nbc3 {[%emt 0:00:00]} 33. Re1 {[%emt 0:00:27]} Qb6 {[%emt 0:01:29]} 34. a3 {[%emt 0:02:09]} a5 {[%emt 0:01:22]} 35. a4 {[%emt 0:00:02]} g5 {[%emt 0:02:17]} 36. Ng2 {[%emt 0:02:11]} Nd2 {[%emt 0:00:44]} 37. Qh1 {[%emt 0:00:45]} Nxa4 {[%emt 0:04:40]} 38. bxa4 {[%emt 0:01:15]} Qc6 {[%emt 0:00:07]} 39. Nc1 {[%emt 0:00:33]} Qxa4+ {[%emt 0:00:08]} 40. Na2 {[%emt 0:00:01]} Qxc2 {[%emt 0:00:31]} 41. Re3 {[%emt 0:02:10]} Qa4 {[%emt 0:00:09]} 0-1

[Event "55th Biel Festival MTO 2022"]
[Site "Biel"]
[Date "2022.07.15"]
[Round "2.20"]
[White "Muradli Mahammad"]
[Black "Tanmay Chopra"]
[Result "1/2-1/2"]
[ECO "D30"]
[WhiteElo "2523"]
[BlackElo "2322"]
[Annotator "ChessBase"]
[PlyCount "73"]
[EventDate "2022.07.13"]
[EventType "swiss"]
[EventCountry "SUI"]
[SourceTitle "playchess.com"]
[Source "ChessBase"]
[SourceQuality "1"]
[TimeControl "40/5400+30:1800+30"]

1. Nf3 {[%emt 0:02:06]} d5 {[%emt 0:00:08]} 2. d4 {[%emt 0:00:10]} Nf6 {[%emt 0:00:08]} 3. c4 {[%emt 0:00:07]} e6 {[%emt 0:00:07]} 4. Bg5 {[%emt 0:01:18]} dxc4 {[%emt 0:00:43]} 5. Qa4+ {[%emt 0:02:01]} Bd7 {[%emt 0:04:04]} 6. Qxc4 {[%emt 0:00:13]} c5 {[%emt 0:00:03]} 7. dxc5 {[%emt 0:03:22]} Qc8 {[%emt 0:00:22]} 8. Nbd2 {[%emt 0:08:39]} Qxc5 {[%emt 0:01:34]} 9. a3 {[%emt 0:01:11]} Qxc4 {[%emt 0:09:40]} 10. Nxc4 {[%emt 0:00:52]} Ne4 {[%emt 0:00:06]} 11. Bf4 {[%emt 0:02:24]} f6 {[%emt 0:00:37]} 12. g3 {[%emt 0:08:47]} Bc5 {[%emt 0:15:29]} 13. Be3 {[%emt 0:00:27]} Bxe3 {[%emt 0:00:22]} 14. Nxe3 {[%emt 0:01:00]} Nc6 {[%emt 0:03:00]} 15. Bg2 {[%emt 0:01:14]} Ke7 {[%emt 0:01:15]} 16. O-O {[%emt 0:03:56]} Rhc8 {[%emt 0:09:36]} 17. Rfd1 {[%emt 0:03:35]} Nd6 {[%emt 0:01:06]} 18. Nd2 {[%emt 0:10:14]} Nd8 {[%emt 0:02:51]} 19. Ne4 {[%emt 0:02:35]} Nxe4 {[%emt 0:03:51]} 20. Bxe4 {[%emt 0:00:04]} f5 {[%emt 0:00:26]} 21. Bf3 {[%emt 0:06:26]} Rc7 {[%emt 0:02:24]} 22. Rd4 {[%emt 0:06:14]} Nf7 {[%emt 0:06:54]} 23. Rad1 {[%emt 0:01:41]} Rac8 {[%emt 0:03:43]} 24. g4 {[%emt 0:06:58]} g6 {[%emt 0:00:28]} 25. gxf5 {[%emt 0:00:06]} gxf5 {[%emt 0:00:06]} 26. Bh5 {[%emt 0:00:18]} Ne5 {[%emt 0:07:00]} 27. f4 {[%emt 0:01:03]} Nc6 {[%emt 0:01:27]} 28. R4d2 {[%emt 0:04:19]} Nb8 {[%emt 0:00:10]} 29. Kf2 {[%emt 0:03:43]} Rc1 {[%emt 0:00:23]} 30. Bf3 {[%emt 0:00:19]} b6 {[%emt 0:00:56]} 31. Kg3 {[%emt 0:03:49]} Ba4 {[%emt 0:02:37]} 32. Rxc1 {[%emt 0:00:10]} Rxc1 {[%emt 0:00:03]} 33. Rd4 {[%emt 0:02:20]} Bb3 {[%emt 0:01:55]} 34. Rd3 {[%emt 0:03:20]} Ba4 {[%emt 0:01:33]} 35. Rd4 {[%emt 0:04:32]} Bb3 {[%emt 0:00:03]} 36. Rd3 {[%emt 0:08:23]} Ba4 {[%emt 0:00:07]} 37. Rd4 {[%emt 0:00:05]} 1/2-1/2